Workbook

Sheet حساب الصالة
A2: عمود1 | B2: اليوم | C2: ساعة البداية | D2: ساعة النهاية | E2: عمود2 | F2: وقت اللعب | G2: عمود3 | H2: عمود8 | I2: المبلغ الواجب دفعه | J2: عمود7 | K2: الصافي للدفع | L2: عمود4 | M2: عمود5 | N2: عمود6 | O2: عرض
A3: 1 | B3: =IF(A3<>"",IF(C3="",NOW(),C3),"") -> 2024-02-27T10:17:45.320 | C3: =IF(A3<>"",IF(C3="",NOW(),C3),"") -> 2024-02-27T10:17:45.320 | D3: =IF(E3<>"",IF(D3="",NOW(),D3),"") ->  | F3: =IFERROR(D3-C3,"") ->  | G3: ps 4 (3) | I3: =IFERROR(IF(O3="عرض",VLOOKUP(G3,مرجعيات!$B$3:$K$7,10,0),IFERROR(FLOOR(VLOOKUP(G3,مرجعيات!$B$2:$C$7,2,0)*F3/مرجعيات!$D$3,100)+H3,0)),0) -> 0 | J3: 12000 | K3: =I3+J3 -> 12000 | L3: =IFERROR(الجدول1[[#This Row],[ساعة البداية]]+M3,"") -> 2024-02-28T09:17:45.320 | M3: 23:00:00 | N3: 2024-02-27T20:21:19
A4: 1 | B4: 2024-02-27T11:21:48.650 | C4: 2024-02-27T11:21:48.650 | D4: 2024-02-27T11:34:54.180 | E4: 1900-01-01 | F4: 00:13:05.530 | G4: ps 4 (3) | I4: =IFERROR(IF(O4="عرض",VLOOKUP(G4,مرجعيات!$B$3:$K$7,10,0),IFERROR(FLOOR(VLOOKUP(G4,مرجعيات!$B$2:$C$7,2,0)*F4/مرجعيات!$D$3,100)+H4,0)),0) -> 3000 | K4: 3000 | L4: =IFERROR(الجدول1[[#This Row],[ساعة البداية]]+M4,"") -> 2024-02-28T10:21:48.650 | M4: 23:00:00 | N4: =NOW() -> 2024-02-27T20:21:22.010
A5: 7 | B5: 2024-02-27T13:08:12.670 | C5: 2024-02-27T13:08:12.670 | D5: 2024-02-27T14:12:04.570 | E5: 1900-01-03 | F5: 01:03:51.900 | G5: ps 5 (2) | I5: =IFERROR(IF(O5="عرض",VLOOKUP(G5,مرجعيات!$B$3:$K$7,10,0),IFERROR(FLOOR(VLOOKUP(G5,مرجعيات!$B$2:$C$7,2,0)*F5/مرجعيات!$D$3,100)+H5,0)),0) -> 14900 | K5: 14900 | L5: =IFERROR(الجدول1[[#This Row],[ساعة البداية]]+M5,"") -> 2024-02-28T12:08:12.670 | M5: 23:00:00 | N5: 2024-02-27T20:21:22.010
A6: 5 | B6: 2024-02-27T14:06:24.770 | C6: 2024-02-27T14:06:24.770 | D6: 2024-02-27T14:34:03.650 | E6: 1900-01-01 | F6: 00:27:38.880 | G6: ps 4 (2) | I6: =IFERROR(IF(O6="عرض",VLOOKUP(G6,مرجعيات!$B$3:$K$7,10,0),IFERROR(FLOOR(VLOOKUP(G6,مرجعيات!$B$2:$C$7,2,0)*F6/مرجعيات!$D$3,100)+H6,0)),0) -> 5500 | K6: 5500 | L6: =IFERROR(الجدول1[[#This Row],[ساعة البداية]]+M6,"") -> 2024-02-28T13:06:24.770 | M6: 23:00:00 | N6: 2024-02-27T20:21:22.010
A7: 2 | B7: 2024-02-27T14:06:31.210 | C7: 2024-02-27T14:06:31.210 | D7: 2024-02-27T14:22:47.210 | E7: 1908-10-04 | F7: 00:16:16 | G7: ps 4 (2) | I7: =IFERROR(IF(O7="عرض",VLOOKUP(G7,مرجعيات!$B$3:$K$7,10,0),IFERROR(FLOOR(VLOOKUP(G7,مرجعيات!$B$2:$C$7,2,0)*F7/مرجعيات!$D$3,100)+H7,0)),0) -> 3200 | K7: 3200 | L7: =IFERROR(الجدول1[[#This Row],[ساعة البداية]]+M7,"") -> 2024-02-28T13:06:31.210 | M7: 23:00:00 | N7: 2024-02-27T20:21:22.010
A8: 2 | B8: 2024-02-27T14:22:48.960 | C8: 2024-02-27T14:22:48.960 | D8: 2024-02-27T14:53:07.320 | E8: 1900-01-01 | F8: 00:30:18.360 | G8: ps 4 (4) | I8: =IFERROR(IF(O8="عرض",VLOOKUP(G8,مرجعيات!$B$3:$K$7,10,0),IFERROR(FLOOR(VLOOKUP(G8,مرجعيات!$B$2:$C$7,2,0)*F8/مرجعيات!$D$3,100)+H8,0)),0) -> 8000 | K8: 8000 | L8: =IFERROR(الجدول1[[#This Row],[ساعة البداية]]+M8,"") -> 2024-02-28T13:22:48.960 | M8: 23:00:00 | N8: 2024-02-27T20:21:22.010
A9: 2 | B9: 2024-02-27T15:32:28.750 | C9: 2024-02-27T15:32:28.750 | D9: 2024-02-27T16:02:16.860 | E9: 1900-01-01 | F9: 00:29:48.110 | G9: ps 4 (2) | I9: =IFERROR(IF(O9="عرض",VLOOKUP(G9,مرجعيات!$B$3:$K$7,10,0),IFERROR(FLOOR(VLOOKUP(G9,مرجعيات!$B$2:$C$7,2,0)*F9/مرجعيات!$D$3,100)+H9,0)),0) -> 5900 | K9: 5900 | L9: =IFERROR(الجدول1[[#This Row],[ساعة البداية]]+M9,"") -> 2024-02-28T14:32:28.750 | M9: 23:00:00 | N9: 2024-02-27T20:21:22.010
A10: 6 | B10: 2024-02-27T16:02:10.120 | C10: 2024-02-27T16:02:10.120 | D10: 2024-02-27T17:06:25.730 | E10: 1900-01-01 | F10: 01:04:15.610 | G10: ps 4 (2) | I10: =IFERROR(IF(O10="عرض",VLOOKUP(G10,مرجعيات!$B$3:$K$7,10,0),IFERROR(FLOOR(VLOOKUP(G10,مرجعيات!$B$2:$C$7,2,0)*F10/مرجعيات!$D$3,100)+H10,0)),0) -> 12800 | K10: 12800 | L10: =IFERROR(الجدول1[[#This Row],[ساعة البداية]]+M10,"") -> 2024-02-28T15:02:10.120 | M10: 23:00:00 | N10: 2024-02-27T20:21:22.010
A11: 4 | B11: 2024-02-27T16:16:05.480 | C11: 2024-02-27T16:16:05.480 | D11: 2024-02-27T17:50:44.210 | E11: 1900-01-01 | F11: 01:34:38.730 | G11: ps 4 (2) | I11: =IFERROR(IF(O11="عرض",VLOOKUP(G11,مرجعيات!$B$3:$K$7,10,0),IFERROR(FLOOR(VLOOKUP(G11,مرجعيات!$B$2:$C$7,2,0)*F11/مرجعيات!$D$3,100)+H11,0)),0) -> 18900 | K11: 18900 | L11: =IFERROR(الجدول1[[#This Row],[ساعة البداية]]+M11,"") -> 2024-02-28T15:16:05.480 | M11: 23:00:00 | N11: 2024-02-27T20:21:22.010
A12: 7 | B12: 2024-02-27T17:01:12.260 | C12: 2024-02-27T17:01:12.260 | D12: 2024-02-27T18:18:19.890 | E12: 1900-01-01 | F12: 01:17:07.630 | G12: ps 5 (2) | I12: =IFERROR(IF(O12="عرض",VLOOKUP(G12,مرجعيات!$B$3:$K$7,10,0),IFERROR(FLOOR(VLOOKUP(G12,مرجعيات!$B$2:$C$7,2,0)*F12/مرجعيات!$D$3,100)+H12,0)),0) -> 17900 | K12: 17900 | L12: =IFERROR(الجدول1[[#This Row],[ساعة البداية]]+M12,"") -> 2024-02-28T16:01:12.260 | M12: 23:00:00 | N12: 2024-02-27T20:21:22.010
A13: 1 | B13: 2024-02-27T17:10:10.380 | C13: 2024-02-27T17:10:10.380 | D13: 2024-02-27T18:22:14.220 | E13: 1900-01-01 | F13: 01:12:03.840 | G13: ps 4 (2) | I13: =IFERROR(IF(O13="عرض",VLOOKUP(G13,مرجعيات!$B$3:$K$7,10,0),IFERROR(FLOOR(VLOOKUP(G13,مرجعيات!$B$2:$C$7,2,0)*F13/مرجعيات!$D$3,100)+H13,0)),0) -> 14400 | K13: 14400 | L13: =IFERROR(الجدول1[[#This Row],[ساعة البداية]]+M13,"") -> 2024-02-28T16:10:10.380 | M13: 23:00:00 | N13: 2024-02-27T20:21:22.010
A14: 5 | B14: 2024-02-27T17:14:32.660 | C14: 2024-02-27T17:14:32.660 | D14: 2024-02-27T17:40:46.630 | E14: 1900-01-01 | F14: 00:26:13.970 | G14: ps 4 (2) | I14: =IFERROR(IF(O14="عرض",VLOOKUP(G14,مرجعيات!$B$3:$K$7,10,0),IFERROR(FLOOR(VLOOKUP(G14,مرجعيات!$B$2:$C$7,2,0)*F14/مرجعيات!$D$3,100)+H14,0)),0) -> 5200 | K14: 5200 | L14: =IFERROR(الجدول1[[#This Row],[ساعة البداية]]+M14,"") -> 2024-02-28T16:14:32.660 | M14: 23:00:00 | N14: 2024-02-27T20:21:22.010
A15: 5 | B15: 2024-02-27T17:51:19.470 | C15: 2024-02-27T17:51:19.470 | D15: 2024-02-27T18:19:00.040 | E15: 1900-01-01 | F15: 00:27:40.570 | G15: ps 4 (2) | I15: =IFERROR(IF(O15="عرض",VLOOKUP(G15,مرجعيات!$B$3:$K$7,10,0),IFERROR(FLOOR(VLOOKUP(G15,مرجعيات!$B$2:$C$7,2,0)*F15/مرجعيات!$D$3,100)+H15,0)),0) -> 5500 | K15: 5500 | L15: =IFERROR(الجدول1[[#This Row],[ساعة البداية]]+M15,"") -> 2024-02-28T16:51:19.470 | M15: 23:00:00 | N15: 2024-02-27T20:21:22.010
A16: 3 | B16: 2024-02-27T17:51:30.320 | C16: 2024-02-27T17:51:30.320 | D16: 2024-02-27T18:32:14.680 | E16: 1900-01-01 | F16: 00:40:44.360 | G16: ps 4 (2) | I16: =IFERROR(IF(O16="عرض",VLOOKUP(G16,مرجعيات!$B$3:$K$7,10,0),IFERROR(FLOOR(VLOOKUP(G16,مرجعيات!$B$2:$C$7,2,0)*F16/مرجعيات!$D$3,100)+H16,0)),0) -> 8100 | K16: 8100 | L16: =IFERROR(الجدول1[[#This Row],[ساعة البداية]]+M16,"") -> 2024-02-28T16:51:30.320 | M16: 23:00:00 | N16: 2024-02-27T20:21:22.010
A17: 2 | B17: 2024-02-27T17:54:01.050 | C17: 2024-02-27T17:54:01.050 | D17: 2024-02-27T18:08:59.430 | E17: 1900-01-03 | F17: 00:14:58.380 | G17: ps 4 (2) | I17: =IFERROR(IF(O17="عرض",VLOOKUP(G17,مرجعيات!$B$3:$K$7,10,0),IFERROR(FLOOR(VLOOKUP(G17,مرجعيات!$B$2:$C$7,2,0)*F17/مرجعيات!$D$3,100)+H17,0)),0) -> 2900 | K17: 2900 | L17: =IFERROR(الجدول1[[#This Row],[ساعة البداية]]+M17,"") -> 2024-02-28T16:54:01.050 | M17: 23:00:00 | N17: 2024-02-27T20:21:22.010
A18: 2 | B18: 2024-02-27T18:09:49.710 | C18: 2024-02-27T18:09:49.710 | D18: 2024-02-27T18:32:49.620 | E18: 1900-01-01 | F18: 00:22:59.910 | G18: ps 4 (2) | I18: =IFERROR(IF(O18="عرض",VLOOKUP(G18,مرجعيات!$B$3:$K$7,10,0),IFERROR(FLOOR(VLOOKUP(G18,مرجعيات!$B$2:$C$7,2,0)*F18/مرجعيات!$D$3,100)+H18,0)),0) -> 4500 | J18: 2900 | K18: 7400 | L18: =IFERROR(الجدول1[[#This Row],[ساعة البداية]]+M18,"") -> 2024-02-28T17:09:49.710 | M18: 23:00:00 | N18: 2024-02-27T20:21:22.010
A19: 6 | B19: 2024-02-27T18:26:11.310 | C19: 2024-02-27T18:26:11.310 | D19: 2024-02-27T18:44:45.060 | E19: 1900-01-01 | F19: 00:18:33.750 | G19: ps 4 (2) | I19: =IFERROR(IF(O19="عرض",VLOOKUP(G19,مرجعيات!$B$3:$K$7,10,0),IFERROR(FLOOR(VLOOKUP(G19,مرجعيات!$B$2:$C$7,2,0)*F19/مرجعيات!$D$3,100)+H19,0)),0) -> 3700 | K19: 3700 | L19: =IFERROR(الجدول1[[#This Row],[ساعة البداية]]+M19,"") -> 2024-02-28T17:26:11.310 | M19: 23:00:00 | N19: 2024-02-27T20:21:22.010
A20: 2 | B20: 2024-02-27T18:34:34.260 | C20: 2024-02-27T18:34:34.260 | D20: 2024-02-27T19:10:56.600 | E20: 1900-01-01 | F20: 00:36:22.340 | G20: ps 4 (4) | I20: =IFERROR(IF(O20="عرض",VLOOKUP(G20,مرجعيات!$B$3:$K$7,10,0),IFERROR(FLOOR(VLOOKUP(G20,مرجعيات!$B$2:$C$7,2,0)*F20/مرجعيات!$D$3,100)+H20,0)),0) -> 9600 | K20: 9600 | L20: =IFERROR(الجدول1[[#This Row],[ساعة البداية]]+M20,"") -> 2024-02-28T17:34:34.260 | M20: 23:00:00 | N20: 2024-02-27T20:21:22.010
A21: 1 | B21: 2024-02-27T18:42:15.160 | C21: 2024-02-27T18:42:15.160 | D21: 2024-02-27T20:20:29.620 | E21: 1900-01-01 | F21: 01:38:14.460 | G21: ps 4 (4) | I21: =IFERROR(IF(O21="عرض",VLOOKUP(G21,مرجعيات!$B$3:$K$7,10,0),IFERROR(FLOOR(VLOOKUP(G21,مرجعيات!$B$2:$C$7,2,0)*F21/مرجعيات!$D$3,100)+H21,0)),0) -> 26100 | K21: 26100 | L21: =IFERROR(الجدول1[[#This Row],[ساعة البداية]]+M21,"") -> 2024-02-28T17:42:15.160 | M21: 23:00:00 | N21: 2024-02-27T20:21:22.010
A22: 2 | B22: 2024-02-27T19:47:29.610 | C22: 2024-02-27T19:47:29.610 | G22: ps 4 (4) | I22: =IFERROR(IF(O22="عرض",VLOOKUP(G22,مرجعيات!$B$3:$K$7,10,0),IFERROR(FLOOR(VLOOKUP(G22,مرجعيات!$B$2:$C$7,2,0)*F22/مرجعيات!$D$3,100)+H22,0)),0) -> 0 | J22: 6000 | K22: 6000 | L22: =IFERROR(الجدول1[[#This Row],[ساعة البداية]]+M22,"") -> 2024-02-27T20:02:29.610 | M22: 00:15:00 | N22: 2024-02-27T20:21:22.010
I23: =IFERROR(IF(O23="عرض",VLOOKUP(G23,مرجعيات!$B$3:$K$7,10,0),IFERROR(FLOOR(VLOOKUP(G23,مرجعيات!$B$2:$C$7,2,0)*F23/مرجعيات!$D$3,100)+H23,0)),0) -> 0 | K23: 0 | L23: =IFERROR(الجدول1[[#This Row],[ساعة البداية]]+M23,"") ->  | M23: 23:00:00 | N23: 2024-02-27T20:21:22.010
I24: =IFERROR(IF(O24="عرض",VLOOKUP(G24,مرجعيات!$B$3:$K$7,10,0),IFERROR(FLOOR(VLOOKUP(G24,مرجعيات!$B$2:$C$7,2,0)*F24/مرجعيات!$D$3,100)+H24,0)),0) -> 0 | K24: 0 | L24: =IFERROR(الجدول1[[#This Row],[ساعة البداية]]+M24,"") ->  | M24: 23:00:00 | N24: 2024-02-27T20:21:22.010
I25: =IFERROR(IF(O25="عرض",VLOOKUP(G25,مرجعيات!$B$3:$K$7,10,0),IFERROR(FLOOR(VLOOKUP(G25,مرجعيات!$B$2:$C$7,2,0)*F25/مرجعيات!$D$3,100)+H25,0)),0) -> 0 | K25: 0 | L25: =IFERROR(الجدول1[[#This Row],[ساعة البداية]]+M25,"") ->  | M25: 23:00:00 | N25: 2024-02-27T20:21:22.010
I26: =IFERROR(IF(O26="عرض",VLOOKUP(G26,مرجعيات!$B$3:$K$7,10,0),IFERROR(FLOOR(VLOOKUP(G26,مرجعيات!$B$2:$C$7,2,0)*F26/مرجعيات!$D$3,100)+H26,0)),0) -> 0 | K26: 0 | L26: =IFERROR(الجدول1[[#This Row],[ساعة البداية]]+M26,"") ->  | M26: 23:00:00 | N26: 2024-02-27T20:21:22.010
I27: =IFERROR(IF(O27="عرض",VLOOKUP(G27,مرجعيات!$B$3:$K$7,10,0),IFERROR(FLOOR(VLOOKUP(G27,مرجعيات!$B$2:$C$7,2,0)*F27/مرجعيات!$D$3,100)+H27,0)),0) -> 0 | K27: 0 | L27: =IFERROR(الجدول1[[#This Row],[ساعة البداية]]+M27,"") ->  | M27: 23:00:00 | N27: 2024-02-27T20:21:22.010
I28: =IFERROR(IF(O28="عرض",VLOOKUP(G28,مرجعيات!$B$3:$K$7,10,0),IFERROR(FLOOR(VLOOKUP(G28,مرجعيات!$B$2:$C$7,2,0)*F28/مرجعيات!$D$3,100)+H28,0)),0) -> 0 | K28: 0 | L28: =IFERROR(الجدول1[[#This Row],[ساعة البداية]]+M28,"") ->  | M28: 23:00:00 | N28: 2024-02-27T20:21:22.010
I29: =IFERROR(IF(O29="عرض",VLOOKUP(G29,مرجعيات!$B$3:$K$7,10,0),IFERROR(FLOOR(VLOOKUP(G29,مرجعيات!$B$2:$C$7,2,0)*F29/مرجعيات!$D$3,100)+H29,0)),0) -> 0 | K29: 0 | L29: =IFERROR(الجدول1[[#This Row],[ساعة البداية]]+M29,"") ->  | M29: 23:00:00 | N29: 2024-02-27T20:21:22.010
I30: =IFERROR(IF(O30="عرض",VLOOKUP(G30,مرجعيات!$B$3:$K$7,10,0),IFERROR(FLOOR(VLOOKUP(G30,مرجعيات!$B$2:$C$7,2,0)*F30/مرجعيات!$D$3,100)+H30,0)),0) -> 0 | K30: 0 | L30: =IFERROR(الجدول1[[#This Row],[ساعة البداية]]+M30,"") ->  | M30: 23:00:00 | N30: 2024-02-27T20:21:22.010
I31: =IFERROR(IF(O31="عرض",VLOOKUP(G31,مرجعيات!$B$3:$K$7,10,0),IFERROR(FLOOR(VLOOKUP(G31,مرجعيات!$B$2:$C$7,2,0)*F31/مرجعيات!$D$3,100)+H31,0)),0) -> 0 | K31: 0 | L31: =IFERROR(الجدول1[[#This Row],[ساعة البداية]]+M31,"") ->  | M31: 23:00:00 | N31: 2024-02-27T20:21:22.010
I32: =IFERROR(IF(O32="عرض",VLOOKUP(G32,مرجعيات!$B$3:$K$7,10,0),IFERROR(FLOOR(VLOOKUP(G32,مرجعيات!$B$2:$C$7,2,0)*F32/مرجعيات!$D$3,100)+H32,0)),0) -> 0 | K32: 0 | L32: =IFERROR(الجدول1[[#This Row],[ساعة البداية]]+M32,"") ->  | M32: 23:00:00 | N32: 2024-02-27T20:21:22.010
I33: =IFERROR(IF(O33="عرض",VLOOKUP(G33,مرجعيات!$B$3:$K$7,10,0),IFERROR(FLOOR(VLOOKUP(G33,مرجعيات!$B$2:$C$7,2,0)*F33/مرجعيات!$D$3,100)+H33,0)),0) -> 0 | K33: 0 | L33: =IFERROR(الجدول1[[#This Row],[ساعة البداية]]+M33,"") ->  | M33: 23:00:00 | N33: 2024-02-27T20:21:22.010
F34: =IFERROR(D34-C34,"") ->  | I34: =IFERROR(IF(O34="عرض",VLOOKUP(G34,مرجعيات!$B$3:$K$7,10,0),IFERROR(FLOOR(VLOOKUP(G34,مرجعيات!$B$2:$C$7,2,0)*F34/مرجعيات!$D$3,100)+H34,0)),0) -> 0 | K34: 0 | L34: =IFERROR(الجدول1[[#This Row],[ساعة البداية]]+M34,"") ->  | M34: 23:00:00 | N34: 2024-02-27T20:21:22.010
I35: =IFERROR(IF(O35="عرض",VLOOKUP(G35,مرجعيات!$B$3:$K$7,10,0),IFERROR(FLOOR(VLOOKUP(G35,مرجعيات!$B$2:$C$7,2,0)*F35/مرجعيات!$D$3,100)+H35,0)),0) -> 0 | K35: 0 | L35: =IFERROR(الجدول1[[#This Row],[ساعة البداية]]+M35,"") ->  | M35: 23:00:00 | N35: 2024-02-27T20:21:22.010
I36: =IFERROR(IF(O36="عرض",VLOOKUP(G36,مرجعيات!$B$3:$K$7,10,0),IFERROR(FLOOR(VLOOKUP(G36,مرجعيات!$B$2:$C$7,2,0)*F36/مرجعيات!$D$3,100)+H36,0)),0) -> 0 | K36: 0 | L36: =IFERROR(الجدول1[[#This Row],[ساعة البداية]]+M36,"") ->  | M36: 00:30:00 | N36: 2024-02-27T20:21:22.010
I37: =IFERROR(IF(O37="عرض",VLOOKUP(G37,مرجعيات!$B$3:$K$7,10,0),IFERROR(FLOOR(VLOOKUP(G37,مرجعيات!$B$2:$C$7,2,0)*F37/مرجعيات!$D$3,100)+H37,0)),0) -> 0 | K37: 0 | L37: =IFERROR(الجدول1[[#This Row],[ساعة البداية]]+M37,"") ->  | M37: 23:00:00 | N37: 2024-02-27T20:21:22.010
I38: =IFERROR(IF(O38="عرض",VLOOKUP(G38,مرجعيات!$B$3:$K$7,10,0),IFERROR(FLOOR(VLOOKUP(G38,مرجعيات!$B$2:$C$7,2,0)*F38/مرجعيات!$D$3,100)+H38,0)),0) -> 0 | K38: 0 | L38: =IFERROR(الجدول1[[#This Row],[ساعة البداية]]+M38,"") ->  | M38: 23:00:00 | N38: 2024-02-27T20:21:22.010
I39: =IFERROR(IF(O39="عرض",VLOOKUP(G39,مرجعيات!$B$3:$K$7,10,0),IFERROR(FLOOR(VLOOKUP(G39,مرجعيات!$B$2:$C$7,2,0)*F39/مرجعيات!$D$3,100)+H39,0)),0) -> 0 | K39: 0 | L39: =IFERROR(الجدول1[[#This Row],[ساعة البداية]]+M39,"") ->  | M39: 23:00:00 | N39: 2024-02-27T20:21:22.010
I40: =IFERROR(IF(O40="عرض",VLOOKUP(G40,مرجعيات!$B$3:$K$7,10,0),IFERROR(FLOOR(VLOOKUP(G40,مرجعيات!$B$2:$C$7,2,0)*F40/مرجعيات!$D$3,100)+H40,0)),0) -> 0 | K40: 0 | L40: =IFERROR(الجدول1[[#This Row],[ساعة البداية]]+M40,"") ->  | M40: 23:00:00 | N40: 2024-02-27T20:21:22.010
I41: =IFERROR(IF(O41="عرض",VLOOKUP(G41,مرجعيات!$B$3:$K$7,10,0),IFERROR(FLOOR(VLOOKUP(G41,مرجعيات!$B$2:$C$7,2,0)*F41/مرجعيات!$D$3,100)+H41,0)),0) -> 0 | K41: 0 | L41: =IFERROR(الجدول1[[#This Row],[ساعة البداية]]+M41,"") ->  | M41: 23:00:00 | N41: 2024-02-27T20:21:22.010
I42: =IFERROR(IF(O42="عرض",VLOOKUP(G42,مرجعيات!$B$3:$K$7,10,0),IFERROR(FLOOR(VLOOKUP(G42,مرجعيات!$B$2:$C$7,2,0)*F42/مرجعيات!$D$3,100)+H42,0)),0) -> 0 | K42: 0 | L42: =IFERROR(الجدول1[[#This Row],[ساعة البداية]]+M42,"") ->  | M42: 23:00:00 | N42: 2024-02-27T20:21:22.010
I43: =IFERROR(IF(O43="عرض",VLOOKUP(G43,مرجعيات!$B$3:$K$7,10,0),IFERROR(FLOOR(VLOOKUP(G43,مرجعيات!$B$2:$C$7,2,0)*F43/مرجعيات!$D$3,100)+H43,0)),0) -> 0 | K43: 0 | L43: =IFERROR(الجدول1[[#This Row],[ساعة البداية]]+M43,"") ->  | M43: 23:00:00 | N43: 2024-02-27T20:21:22.010
I44: =IFERROR(IF(O44="عرض",VLOOKUP(G44,مرجعيات!$B$3:$K$7,10,0),IFERROR(FLOOR(VLOOKUP(G44,مرجعيات!$B$2:$C$7,2,0)*F44/مرجعيات!$D$3,100)+H44,0)),0) -> 0 | K44: 0 | L44: =IFERROR(الجدول1[[#This Row],[ساعة البداية]]+M44,"") ->  | M44: 23:00:00 | N44: 2024-02-27T20:21:22.010
I45: =IFERROR(IF(O45="عرض",VLOOKUP(G45,مرجعيات!$B$3:$K$7,10,0),IFERROR(FLOOR(VLOOKUP(G45,مرجعيات!$B$2:$C$7,2,0)*F45/مرجعيات!$D$3,100)+H45,0)),0) -> 0 | K45: 0 | L45: =IFERROR(الجدول1[[#This Row],[ساعة البداية]]+M45,"") ->  | M45: 23:00:00 | N45: 2024-02-27T20:21:22.010
I46: =IFERROR(IF(O46="عرض",VLOOKUP(G46,مرجعيات!$B$3:$K$7,10,0),IFERROR(FLOOR(VLOOKUP(G46,مرجعيات!$B$2:$C$7,2,0)*F46/مرجعيات!$D$3,100)+H46,0)),0) -> 0 | K46: 0 | L46: =IFERROR(الجدول1[[#This Row],[ساعة البداية]]+M46,"") ->  | M46: 23:00:00 | N46: 2024-02-27T20:21:22.010
I47: =IFERROR(IF(O47="عرض",VLOOKUP(G47,مرجعيات!$B$3:$K$7,10,0),IFERROR(FLOOR(VLOOKUP(G47,مرجعيات!$B$2:$C$7,2,0)*F47/مرجعيات!$D$3,100)+H47,0)),0) -> 0 | K47: 0 | L47: =IFERROR(الجدول1[[#This Row],[ساعة البداية]]+M47,"") ->  | M47: 23:00:00 | N47: 2024-02-27T20:21:22.010
I48: =IFERROR(IF(O48="عرض",VLOOKUP(G48,مرجعيات!$B$3:$K$7,10,0),IFERROR(FLOOR(VLOOKUP(G48,مرجعيات!$B$2:$C$7,2,0)*F48/مرجعيات!$D$3,100)+H48,0)),0) -> 0 | K48: 0 | L48: =IFERROR(الجدول1[[#This Row],[ساعة البداية]]+M48,"") ->  | M48: 23:00:00 | N48: 2024-02-27T20:21:22.010
I49: =IFERROR(IF(O49="عرض",VLOOKUP(G49,مرجعيات!$B$3:$K$7,10,0),IFERROR(FLOOR(VLOOKUP(G49,مرجعيات!$B$2:$C$7,2,0)*F49/مرجعيات!$D$3,100)+H49,0)),0) -> 0 | K49: 0 | L49: =IFERROR(الجدول1[[#This Row],[ساعة البداية]]+M49,"") ->  | M49: 23:00:00 | N49: 2024-02-27T20:21:22.010
I50: =IFERROR(IF(O50="عرض",VLOOKUP(G50,مرجعيات!$B$3:$K$7,10,0),IFERROR(FLOOR(VLOOKUP(G50,مرجعيات!$B$2:$C$7,2,0)*F50/مرجعيات!$D$3,100)+H50,0)),0) -> 0 | K50: 0 | L50: =IFERROR(الجدول1[[#This Row],[ساعة البداية]]+M50,"") ->  | M50: 23:00:00 | N50: 2024-02-27T20:21:22.010
I51: =IFERROR(IF(O51="عرض",VLOOKUP(G51,مرجعيات!$B$3:$K$7,10,0),IFERROR(FLOOR(VLOOKUP(G51,مرجعيات!$B$2:$C$7,2,0)*F51/مرجعيات!$D$3,100)+H51,0)),0) -> 0 | K51: 0 | L51: =IFERROR(الجدول1[[#This Row],[ساعة البداية]]+M51,"") ->  | M51: 23:00:00 | N51: 2024-02-27T20:21:22.010
I52: =IFERROR(IF(O52="عرض",VLOOKUP(G52,مرجعيات!$B$3:$K$7,10,0),IFERROR(FLOOR(VLOOKUP(G52,مرجعيات!$B$2:$C$7,2,0)*F52/مرجعيات!$D$3,100)+H52,0)),0) -> 0 | K52: 0 | L52: =IFERROR(الجدول1[[#This Row],[ساعة البداية]]+M52,"") ->  | M52: 23:00:00 | N52: 2024-02-27T20:21:22.010
I53: =IFERROR(IF(O53="عرض",VLOOKUP(G53,مرجعيات!$B$3:$K$7,10,0),IFERROR(FLOOR(VLOOKUP(G53,مرجعيات!$B$2:$C$7,2,0)*F53/مرجعيات!$D$3,100)+H53,0)),0) -> 0 | K53: 0 | L53: =IFERROR(الجدول1[[#This Row],[ساعة البداية]]+M53,"") ->  | M53: 23:00:00 | N53: 2024-02-27T20:21:22.010
I54: =IFERROR(IF(O54="عرض",VLOOKUP(G54,مرجعيات!$B$3:$K$7,10,0),IFERROR(FLOOR(VLOOKUP(G54,مرجعيات!$B$2:$C$7,2,0)*F54/مرجعيات!$D$3,100)+H54,0)),0) -> 0 | K54: 0 | L54: =IFERROR(الجدول1[[#This Row],[ساعة البداية]]+M54,"") ->  | M54: 23:00:00 | N54: 2024-02-27T20:21:22.010
I55: =IFERROR(IF(O55="عرض",VLOOKUP(G55,مرجعيات!$B$3:$K$7,10,0),IFERROR(FLOOR(VLOOKUP(G55,مرجعيات!$B$2:$C$7,2,0)*F55/مرجعيات!$D$3,100)+H55,0)),0) -> 0 | K55: 0 | L55: =IFERROR(الجدول1[[#This Row],[ساعة البداية]]+M55,"") ->  | M55: 23:00:00 | N55: 2024-02-27T20:21:22.010
I56: =IFERROR(IF(O56="عرض",VLOOKUP(G56,مرجعيات!$B$3:$K$7,10,0),IFERROR(FLOOR(VLOOKUP(G56,مرجعيات!$B$2:$C$7,2,0)*F56/مرجعيات!$D$3,100)+H56,0)),0) -> 0 | K56: 0 | L56: =IFERROR(الجدول1[[#This Row],[ساعة البداية]]+M56,"") ->  | M56: 23:00:00 | N56: 2024-02-27T20:21:22.010
I57: =IFERROR(IF(O57="عرض",VLOOKUP(G57,مرجعيات!$B$3:$K$7,10,0),IFERROR(FLOOR(VLOOKUP(G57,مرجعيات!$B$2:$C$7,2,0)*F57/مرجعيات!$D$3,100)+H57,0)),0) -> 0 | K57: 0 | L57: =IFERROR(الجدول1[[#This Row],[ساعة البداية]]+M57,"") ->  | M57: 23:00:00 | N57: 2024-02-27T20:21:22.010
I58: =IFERROR(IF(O58="عرض",VLOOKUP(G58,مرجعيات!$B$3:$K$7,10,0),IFERROR(FLOOR(VLOOKUP(G58,مرجعيات!$B$2:$C$7,2,0)*F58/مرجعيات!$D$3,100)+H58,0)),0) -> 0 | K58: 0 | L58: =IFERROR(الجدول1[[#This Row],[ساعة البداية]]+M58,"") ->  | M58: 23:00:00 | N58: 2024-02-27T20:21:22.010
I59: =IFERROR(IF(O59="عرض",VLOOKUP(G59,مرجعيات!$B$3:$K$7,10,0),IFERROR(FLOOR(VLOOKUP(G59,مرجعيات!$B$2:$C$7,2,0)*F59/مرجعيات!$D$3,100)+H59,0)),0) -> 0 | K59: 0 | L59: =IFERROR(الجدول1[[#This Row],[ساعة البداية]]+M59,"") ->  | M59: 23:00:00 | N59: 2024-02-27T20:21:22.010
I60: =IFERROR(IF(O60="عرض",VLOOKUP(G60,مرجعيات!$B$3:$K$7,10,0),IFERROR(FLOOR(VLOOKUP(G60,مرجعيات!$B$2:$C$7,2,0)*F60/مرجعيات!$D$3,100)+H60,0)),0) -> 0 | K60: 0 | L60: =IFERROR(الجدول1[[#This Row],[ساعة البداية]]+M60,"") ->  | M60: 23:00:00 | N60: 2024-02-27T20:21:22.010
I61: =IFERROR(IF(O61="عرض",VLOOKUP(G61,مرجعيات!$B$3:$K$7,10,0),IFERROR(FLOOR(VLOOKUP(G61,مرجعيات!$B$2:$C$7,2,0)*F61/مرجعيات!$D$3,100)+H61,0)),0) -> 0 | K61: 0 | L61: =IFERROR(الجدول1[[#This Row],[ساعة البداية]]+M61,"") ->  | M61: 23:00:00 | N61: 2024-02-27T20:21:22.010
I62: =IFERROR(IF(O62="عرض",VLOOKUP(G62,مرجعيات!$B$3:$K$7,10,0),IFERROR(FLOOR(VLOOKUP(G62,مرجعيات!$B$2:$C$7,2,0)*F62/مرجعيات!$D$3,100)+H62,0)),0) -> 0 | K62: 0 | L62: =IFERROR(الجدول1[[#This Row],[ساعة البداية]]+M62,"") ->  | M62: 23:00:00 | N62: 2024-02-27T20:21:22.010
I63: =IFERROR(IF(O63="عرض",VLOOKUP(G63,مرجعيات!$B$3:$K$7,10,0),IFERROR(FLOOR(VLOOKUP(G63,مرجعيات!$B$2:$C$7,2,0)*F63/مرجعيات!$D$3,100)+H63,0)),0) -> 0 | K63: 0 | L63: =IFERROR(الجدول1[[#This Row],[ساعة البداية]]+M63,"") ->  | M63: 23:00:00 | N63: 2024-02-27T20:21:22.010
I64: =IFERROR(IF(O64="عرض",VLOOKUP(G64,مرجعيات!$B$3:$K$7,10,0),IFERROR(FLOOR(VLOOKUP(G64,مرجعيات!$B$2:$C$7,2,0)*F64/مرجعيات!$D$3,100)+H64,0)),0) -> 0 | K64: 0 | L64: =IFERROR(الجدول1[[#This Row],[ساعة البداية]]+M64,"") ->  | M64: 23:00:00 | N64: 2024-02-27T20:21:22.010
I65: =IFERROR(IF(O65="عرض",VLOOKUP(G65,مرجعيات!$B$3:$K$7,10,0),IFERROR(FLOOR(VLOOKUP(G65,مرجعيات!$B$2:$C$7,2,0)*F65/مرجعيات!$D$3,100)+H65,0)),0) -> 0 | K65: 0 | L65: =IFERROR(الجدول1[[#This Row],[ساعة البداية]]+M65,"") ->  | M65: 23:00:00 | N65: 2024-02-27T20:21:22.010
I66: =IFERROR(IF(O66="عرض",VLOOKUP(G66,مرجعيات!$B$3:$K$7,10,0),IFERROR(FLOOR(VLOOKUP(G66,مرجعيات!$B$2:$C$7,2,0)*F66/مرجعيات!$D$3,100)+H66,0)),0) -> 0 | K66: 0 | L66: =IFERROR(الجدول1[[#This Row],[ساعة البداية]]+M66,"") ->  | M66: 23:00:00 | N66: 2024-02-27T20:21:22.010
B67: =IF(A67<>"",IF(C67="",NOW(),C67),"") ->  | C67: =IF(A67<>"",IF(C67="",NOW(),C67),"") ->  | D67: =IF(E67<>"",IF(D67="",NOW(),D67),"") ->  | F67: =IFERROR(D67-C67,"") ->  | I67: =IFERROR(IF(O67="عرض",VLOOKUP(G67,مرجعيات!$B$3:$K$7,10,0),IFERROR(FLOOR(VLOOKUP(G67,مرجعيات!$B$2:$C$7,2,0)*F67/مرجعيات!$D$3,100)+H67,0)),0) -> 0 | K67: =I67+J67 -> 0 | L67: =IFERROR(الجدول1[[#This Row],[ساعة البداية]]+M67,"") ->  | M67: 23:00:00 | N67: =NOW() -> 2024-02-27T20:21:22.010
I68: =IFERROR(IF(O68="عرض",VLOOKUP(G68,مرجعيات!$B$3:$K$7,10,0),IFERROR(FLOOR(VLOOKUP(G68,مرجعيات!$B$2:$C$7,2,0)*F68/مرجعيات!$D$3,100)+H68,0)),0) -> 0 | K68: 0 | L68: =IFERROR(الجدول1[[#This Row],[ساعة البداية]]+M68,"") ->  | M68: 23:00:00 | N68: 2024-02-27T20:21:22.010
I69: =IFERROR(IF(O69="عرض",VLOOKUP(G69,مرجعيات!$B$3:$K$7,10,0),IFERROR(FLOOR(VLOOKUP(G69,مرجعيات!$B$2:$C$7,2,0)*F69/مرجعيات!$D$3,100)+H69,0)),0) -> 0 | K69: 0 | L69: =IFERROR(الجدول1[[#This Row],[ساعة البداية]]+M69,"") ->  | M69: 23:00:00 | N69: 2024-02-27T20:21:22.010
I70: =IFERROR(IF(O70="عرض",VLOOKUP(G70,مرجعيات!$B$3:$K$7,10,0),IFERROR(FLOOR(VLOOKUP(G70,مرجعيات!$B$2:$C$7,2,0)*F70/مرجعيات!$D$3,100)+H70,0)),0) -> 0 | K70: 0 | L70: =IFERROR(الجدول1[[#This Row],[ساعة البداية]]+M70,"") ->  | M70: 23:00:00 | N70: 2024-02-27T20:21:22.010
I71: =IFERROR(IF(O71="عرض",VLOOKUP(G71,مرجعيات!$B$3:$K$7,10,0),IFERROR(FLOOR(VLOOKUP(G71,مرجعيات!$B$2:$C$7,2,0)*F71/مرجعيات!$D$3,100)+H71,0)),0) -> 0 | K71: 0 | L71: =IFERROR(الجدول1[[#This Row],[ساعة البداية]]+M71,"") ->  | M71: 23:00:00 | N71: 2024-02-27T20:21:22.010
I72: =IFERROR(IF(O72="عرض",VLOOKUP(G72,مرجعيات!$B$3:$K$7,10,0),IFERROR(FLOOR(VLOOKUP(G72,مرجعيات!$B$2:$C$7,2,0)*F72/مرجعيات!$D$3,100)+H72,0)),0) -> 0 | K72: 0 | L72: =IFERROR(الجدول1[[#This Row],[ساعة البداية]]+M72,"") ->  | M72: 23:00:00 | N72: 2024-02-27T20:21:22.010
I73: =IFERROR(IF(O73="عرض",VLOOKUP(G73,مرجعيات!$B$3:$K$7,10,0),IFERROR(FLOOR(VLOOKUP(G73,مرجعيات!$B$2:$C$7,2,0)*F73/مرجعيات!$D$3,100)+H73,0)),0) -> 0 | K73: 0 | L73: =IFERROR(الجدول1[[#This Row],[ساعة البداية]]+M73,"") ->  | M73: 23:00:00 | N73: 2024-02-27T20:21:22.010
I74: =IFERROR(IF(O74="عرض",VLOOKUP(G74,مرجعيات!$B$3:$K$7,10,0),IFERROR(FLOOR(VLOOKUP(G74,مرجعيات!$B$2:$C$7,2,0)*F74/مرجعيات!$D$3,100)+H74,0)),0) -> 0 | K74: 0 | L74: =IFERROR(الجدول1[[#This Row],[ساعة البداية]]+M74,"") ->  | M74: 23:00:00 | N74: 2024-02-27T20:21:22.010
I75: =IFERROR(IF(O75="عرض",VLOOKUP(G75,مرجعيات!$B$3:$K$7,10,0),IFERROR(FLOOR(VLOOKUP(G75,مرجعيات!$B$2:$C$7,2,0)*F75/مرجعيات!$D$3,100)+H75,0)),0) -> 0 | K75: 0 | L75: =IFERROR(الجدول1[[#This Row],[ساعة البداية]]+M75,"") ->  | M75: 23:00:00 | N75: 2024-02-27T20:21:22.010
I76: =IFERROR(IF(O76="عرض",VLOOKUP(G76,مرجعيات!$B$3:$K$7,10,0),IFERROR(FLOOR(VLOOKUP(G76,مرجعيات!$B$2:$C$7,2,0)*F76/مرجعيات!$D$3,100)+H76,0)),0) -> 0 | K76: 0 | L76: =IFERROR(الجدول1[[#This Row],[ساعة البداية]]+M76,"") ->  | M76: 23:00:00 | N76: 2024-02-27T20:21:22.010
I77: =IFERROR(IF(O77="عرض",VLOOKUP(G77,مرجعيات!$B$3:$K$7,10,0),IFERROR(FLOOR(VLOOKUP(G77,مرجعيات!$B$2:$C$7,2,0)*F77/مرجعيات!$D$3,100)+H77,0)),0) -> 0 | K77: 0 | L77: =IFERROR(الجدول1[[#This Row],[ساعة البداية]]+M77,"") ->  | M77: 23:00:00 | N77: 2024-02-27T20:21:22.010
I78: =IFERROR(IF(O78="عرض",VLOOKUP(G78,مرجعيات!$B$3:$K$7,10,0),IFERROR(FLOOR(VLOOKUP(G78,مرجعيات!$B$2:$C$7,2,0)*F78/مرجعيات!$D$3,100)+H78,0)),0) -> 0 | K78: 0 | L78: =IFERROR(الجدول1[[#This Row],[ساعة البداية]]+M78,"") ->  | M78: 23:00:00 | N78: 2024-02-27T20:21:22.010
I79: =IFERROR(IF(O79="عرض",VLOOKUP(G79,مرجعيات!$B$3:$K$7,10,0),IFERROR(FLOOR(VLOOKUP(G79,مرجعيات!$B$2:$C$7,2,0)*F79/مرجعيات!$D$3,100)+H79,0)),0) -> 0 | K79: 0 | L79: =IFERROR(الجدول1[[#This Row],[ساعة البداية]]+M79,"") ->  | M79: 23:00:00 | N79: 2024-02-27T20:21:22.010
I80: =IFERROR(IF(O80="عرض",VLOOKUP(G80,مرجعيات!$B$3:$K$7,10,0),IFERROR(FLOOR(VLOOKUP(G80,مرجعيات!$B$2:$C$7,2,0)*F80/مرجعيات!$D$3,100)+H80,0)),0) -> 0 | K80: 0 | L80: =IFERROR(الجدول1[[#This Row],[ساعة البداية]]+M80,"") ->  | M80: 23:00:00 | N80: 2024-02-27T20:21:22.010
I81: =IFERROR(IF(O81="عرض",VLOOKUP(G81,مرجعيات!$B$3:$K$7,10,0),IFERROR(FLOOR(VLOOKUP(G81,مرجعيات!$B$2:$C$7,2,0)*F81/مرجعيات!$D$3,100)+H81,0)),0) -> 0 | K81: 0 | L81: =IFERROR(الجدول1[[#This Row],[ساعة البداية]]+M81,"") ->  | M81: 23:00:00 | N81: 2024-02-27T20:21:22.010
I82: =IFERROR(IF(O82="عرض",VLOOKUP(G82,مرجعيات!$B$3:$K$7,10,0),IFERROR(FLOOR(VLOOKUP(G82,مرجعيات!$B$2:$C$7,2,0)*F82/مرجعيات!$D$3,100)+H82,0)),0) -> 0 | K82: 0 | L82: =IFERROR(الجدول1[[#This Row],[ساعة البداية]]+M82,"") ->  | M82: 23:00:00 | N82: 2024-02-27T20:21:22.010
I83: =IFERROR(IF(O83="عرض",VLOOKUP(G83,مرجعيات!$B$3:$K$7,10,0),IFERROR(FLOOR(VLOOKUP(G83,مرجعيات!$B$2:$C$7,2,0)*F83/مرجعيات!$D$3,100)+H83,0)),0) -> 0 | K83: 0 | L83: =IFERROR(الجدول1[[#This Row],[ساعة البداية]]+M83,"") ->  | M83: 23:00:00 | N83: 2024-02-27T20:21:22.010
I84: =IFERROR(IF(O84="عرض",VLOOKUP(G84,مرجعيات!$B$3:$K$7,10,0),IFERROR(FLOOR(VLOOKUP(G84,مرجعيات!$B$2:$C$7,2,0)*F84/مرجعيات!$D$3,100)+H84,0)),0) -> 0 | K84: 0 | L84: =IFERROR(الجدول1[[#This Row],[ساعة البداية]]+M84,"") ->  | M84: 23:00:00 | N84: 2024-02-27T20:21:22.010
I85: =IFERROR(IF(O85="عرض",VLOOKUP(G85,مرجعيات!$B$3:$K$7,10,0),IFERROR(FLOOR(VLOOKUP(G85,مرجعيات!$B$2:$C$7,2,0)*F85/مرجعيات!$D$3,100)+H85,0)),0) -> 0 | K85: 0 | L85: =IFERROR(الجدول1[[#This Row],[ساعة البداية]]+M85,"") ->  | M85: 23:00:00 | N85: 2024-02-27T20:21:22.010
I86: =IFERROR(IF(O86="عرض",VLOOKUP(G86,مرجعيات!$B$3:$K$7,10,0),IFERROR(FLOOR(VLOOKUP(G86,مرجعيات!$B$2:$C$7,2,0)*F86/مرجعيات!$D$3,100)+H86,0)),0) -> 0 | K86: 0 | L86: =IFERROR(الجدول1[[#This Row],[ساعة البداية]]+M86,"") ->  | M86: 23:00:00 | N86: 2024-02-27T20:21:22.010
I87: =IFERROR(IF(O87="عرض",VLOOKUP(G87,مرجعيات!$B$3:$K$7,10,0),IFERROR(FLOOR(VLOOKUP(G87,مرجعيات!$B$2:$C$7,2,0)*F87/مرجعيات!$D$3,100)+H87,0)),0) -> 0 | K87: 0 | L87: =IFERROR(الجدول1[[#This Row],[ساعة البداية]]+M87,"") ->  | M87: 23:00:00 | N87: 2024-02-27T20:21:22.010
I88: =IFERROR(IF(O88="عرض",VLOOKUP(G88,مرجعيات!$B$3:$K$7,10,0),IFERROR(FLOOR(VLOOKUP(G88,مرجعيات!$B$2:$C$7,2,0)*F88/مرجعيات!$D$3,100)+H88,0)),0) -> 0 | K88: 0 | L88: =IFERROR(الجدول1[[#This Row],[ساعة البداية]]+M88,"") ->  | M88: 23:00:00 | N88: 2024-02-27T20:21:22.010
I89: =IFERROR(IF(O89="عرض",VLOOKUP(G89,مرجعيات!$B$3:$K$7,10,0),IFERROR(FLOOR(VLOOKUP(G89,مرجعيات!$B$2:$C$7,2,0)*F89/مرجعيات!$D$3,100)+H89,0)),0) -> 0 | K89: 0 | L89: =IFERROR(الجدول1[[#This Row],[ساعة البداية]]+M89,"") ->  | M89: 23:00:00 | N89: 2024-02-27T20:21:22.010
I90: =IFERROR(IF(O90="عرض",VLOOKUP(G90,مرجعيات!$B$3:$K$7,10,0),IFERROR(FLOOR(VLOOKUP(G90,مرجعيات!$B$2:$C$7,2,0)*F90/مرجعيات!$D$3,100)+H90,0)),0) -> 0 | K90: 0 | L90: =IFERROR(الجدول1[[#This Row],[ساعة البداية]]+M90,"") ->  | M90: 23:00:00 | N90: 2024-02-27T20:21:22.010
I91: =IFERROR(IF(O91="عرض",VLOOKUP(G91,مرجعيات!$B$3:$K$7,10,0),IFERROR(FLOOR(VLOOKUP(G91,مرجعيات!$B$2:$C$7,2,0)*F91/مرجعيات!$D$3,100)+H91,0)),0) -> 0 | K91: 0 | L91: =IFERROR(الجدول1[[#This Row],[ساعة البداية]]+M91,"") ->  | M91: 23:00:00 | N91: 2024-02-27T20:21:22.010
I92: =IFERROR(IF(O92="عرض",VLOOKUP(G92,مرجعيات!$B$3:$K$7,10,0),IFERROR(FLOOR(VLOOKUP(G92,مرجعيات!$B$2:$C$7,2,0)*F92/مرجعيات!$D$3,100)+H92,0)),0) -> 0 | K92: 0 | L92: =IFERROR(الجدول1[[#This Row],[ساعة البداية]]+M92,"") ->  | M92: 23:00:00 | N92: 2024-02-27T20:21:22.010
I93: =IFERROR(IF(O93="عرض",VLOOKUP(G93,مرجعيات!$B$3:$K$7,10,0),IFERROR(FLOOR(VLOOKUP(G93,مرجعيات!$B$2:$C$7,2,0)*F93/مرجعيات!$D$3,100)+H93,0)),0) -> 0 | K93: 0 | L93: =IFERROR(الجدول1[[#This Row],[ساعة البداية]]+M93,"") ->  | M93: 23:00:00 | N93: 2024-02-27T20:21:22.010
I94: =IFERROR(IF(O94="عرض",VLOOKUP(G94,مرجعيات!$B$3:$K$7,10,0),IFERROR(FLOOR(VLOOKUP(G94,مرجعيات!$B$2:$C$7,2,0)*F94/مرجعيات!$D$3,100)+H94,0)),0) -> 0 | K94: 0 | L94: =IFERROR(الجدول1[[#This Row],[ساعة البداية]]+M94,"") ->  | M94: 23:00:00 | N94: 2024-02-27T20:21:22.010
I95: =IFERROR(IF(O95="عرض",VLOOKUP(G95,مرجعيات!$B$3:$K$7,10,0),IFERROR(FLOOR(VLOOKUP(G95,مرجعيات!$B$2:$C$7,2,0)*F95/مرجعيات!$D$3,100)+H95,0)),0) -> 0 | K95: 0 | L95: =IFERROR(الجدول1[[#This Row],[ساعة البداية]]+M95,"") ->  | M95: 23:00:00 | N95: 2024-02-27T20:21:22.010
I96: =IFERROR(IF(O96="عرض",VLOOKUP(G96,مرجعيات!$B$3:$K$7,10,0),IFERROR(FLOOR(VLOOKUP(G96,مرجعيات!$B$2:$C$7,2,0)*F96/مرجعيات!$D$3,100)+H96,0)),0) -> 0 | K96: 0 | L96: =IFERROR(الجدول1[[#This Row],[ساعة البداية]]+M96,"") ->  | M96: 23:00:00 | N96: 2024-02-27T20:21:22.010
I97: =IFERROR(IF(O97="عرض",VLOOKUP(G97,مرجعيات!$B$3:$K$7,10,0),IFERROR(FLOOR(VLOOKUP(G97,مرجعيات!$B$2:$C$7,2,0)*F97/مرجعيات!$D$3,100)+H97,0)),0) -> 0 | K97: 0 | L97: =IFERROR(الجدول1[[#This Row],[ساعة البداية]]+M97,"") ->  | M97: 23:00:00 | N97: 2024-02-27T20:21:22.010
I98: =IFERROR(IF(O98="عرض",VLOOKUP(G98,مرجعيات!$B$3:$K$7,10,0),IFERROR(FLOOR(VLOOKUP(G98,مرجعيات!$B$2:$C$7,2,0)*F98/مرجعيات!$D$3,100)+H98,0)),0) -> 0 | K98: 0 | L98: =IFERROR(الجدول1[[#This Row],[ساعة البداية]]+M98,"") ->  | M98: 23:00:00 | N98: 2024-02-27T20:21:22.010
I99: =IFERROR(IF(O99="عرض",VLOOKUP(G99,مرجعيات!$B$3:$K$7,10,0),IFERROR(FLOOR(VLOOKUP(G99,مرجعيات!$B$2:$C$7,2,0)*F99/مرجعيات!$D$3,100)+H99,0)),0) -> 0 | K99: 0 | L99: =IFERROR(الجدول1[[#This Row],[ساعة البداية]]+M99,"") ->  | M99: 23:00:00 | N99: 2024-02-27T20:21:22.010
I100: =IFERROR(IF(O100="عرض",VLOOKUP(G100,مرجعيات!$B$3:$K$7,10,0),IFERROR(FLOOR(VLOOKUP(G100,مرجعيات!$B$2:$C$7,2,0)*F100/مرجعيات!$D$3,100)+H100,0)),0) -> 0 | K100: 0 | L100: =IFERROR(الجدول1[[#This Row],[ساعة البداية]]+M100,"") ->  | M100: 23:00:00 | N100: 2024-02-27T20:21:22.010
I101: =IFERROR(IF(O101="عرض",VLOOKUP(G101,مرجعيات!$B$3:$K$7,10,0),IFERROR(FLOOR(VLOOKUP(G101,مرجعيات!$B$2:$C$7,2,0)*F101/مرجعيات!$D$3,100)+H101,0)),0) -> 0 | K101: 0 | L101: =IFERROR(الجدول1[[#This Row],[ساعة البداية]]+M101,"") ->  | M101: 23:00:00 | N101: 2024-02-27T20:21:22.010
I102: =IFERROR(IF(O102="عرض",VLOOKUP(G102,مرجعيات!$B$3:$K$7,10,0),IFERROR(FLOOR(VLOOKUP(G102,مرجعيات!$B$2:$C$7,2,0)*F102/مرجعيات!$D$3,100)+H102,0)),0) -> 0 | K102: 0 | L102: =IFERROR(الجدول1[[#This Row],[ساعة البداية]]+M102,"") ->  | M102: 23:00:00 | N102: 2024-02-27T20:21:22.010
I103: =IFERROR(IF(O103="عرض",VLOOKUP(G103,مرجعيات!$B$3:$K$7,10,0),IFERROR(FLOOR(VLOOKUP(G103,مرجعيات!$B$2:$C$7,2,0)*F103/مرجعيات!$D$3,100)+H103,0)),0) -> 0 | K103: 0 | L103: =IFERROR(الجدول1[[#This Row],[ساعة البداية]]+M103,"") ->  | M103: 23:00:00 | N103: 2024-02-27T20:21:22.010
I104: =IFERROR(IF(O104="عرض",VLOOKUP(G104,مرجعيات!$B$3:$K$7,10,0),IFERROR(FLOOR(VLOOKUP(G104,مرجعيات!$B$2:$C$7,2,0)*F104/مرجعيات!$D$3,100)+H104,0)),0) -> 0 | K104: 0 | L104: =IFERROR(الجدول1[[#This Row],[ساعة البداية]]+M104,"") ->  | M104: 23:00:00 | N104: 2024-02-27T20:21:22.010
I105: =IFERROR(IF(O105="عرض",VLOOKUP(G105,مرجعيات!$B$3:$K$7,10,0),IFERROR(FLOOR(VLOOKUP(G105,مرجعيات!$B$2:$C$7,2,0)*F105/مرجعيات!$D$3,100)+H105,0)),0) -> 0 | K105: 0 | L105: =IFERROR(الجدول1[[#This Row],[ساعة البداية]]+M105,"") ->  | M105: 23:00:00 | N105: 2024-02-27T20:21:22.010
I106: =IFERROR(IF(O106="عرض",VLOOKUP(G106,مرجعيات!$B$3:$K$7,10,0),IFERROR(FLOOR(VLOOKUP(G106,مرجعيات!$B$2:$C$7,2,0)*F106/مرجعيات!$D$3,100)+H106,0)),0) -> 0 | K106: 0 | L106: =IFERROR(الجدول1[[#This Row],[ساعة البداية]]+M106,"") ->  | M106: 23:00:00 | N106: 2024-02-27T20:21:22.010
I107: =IFERROR(IF(O107="عرض",VLOOKUP(G107,مرجعيات!$B$3:$K$7,10,0),IFERROR(FLOOR(VLOOKUP(G107,مرجعيات!$B$2:$C$7,2,0)*F107/مرجعيات!$D$3,100)+H107,0)),0) -> 0 | K107: 0 | L107: =IFERROR(الجدول1[[#This Row],[ساعة البداية]]+M107,"") ->  | M107: 23:00:00 | N107: 2024-02-27T20:21:22.010
I108: =IFERROR(IF(O108="عرض",VLOOKUP(G108,مرجعيات!$B$3:$K$7,10,0),IFERROR(FLOOR(VLOOKUP(G108,مرجعيات!$B$2:$C$7,2,0)*F108/مرجعيات!$D$3,100)+H108,0)),0) -> 0 | K108: 0 | L108: =IFERROR(الجدول1[[#This Row],[ساعة البداية]]+M108,"") ->  | M108: 23:00:00 | N108: 2024-02-27T20:21:22.010
I109: =IFERROR(IF(O109="عرض",VLOOKUP(G109,مرجعيات!$B$3:$K$7,10,0),IFERROR(FLOOR(VLOOKUP(G109,مرجعيات!$B$2:$C$7,2,0)*F109/مرجعيات!$D$3,100)+H109,0)),0) -> 0 | K109: 0 | L109: =IFERROR(الجدول1[[#This Row],[ساعة البداية]]+M109,"") ->  | M109: 23:00:00 | N109: 2024-02-27T20:21:22.010
I110: =IFERROR(IF(O110="عرض",VLOOKUP(G110,مرجعيات!$B$3:$K$7,10,0),IFERROR(FLOOR(VLOOKUP(G110,مرجعيات!$B$2:$C$7,2,0)*F110/مرجعيات!$D$3,100)+H110,0)),0) -> 0 | K110: 0 | L110: =IFERROR(الجدول1[[#This Row],[ساعة البداية]]+M110,"") ->  | M110: 23:00:00 | N110: 2024-02-27T20:21:22.010
I111: =IFERROR(IF(O111="عرض",VLOOKUP(G111,مرجعيات!$B$3:$K$7,10,0),IFERROR(FLOOR(VLOOKUP(G111,مرجعيات!$B$2:$C$7,2,0)*F111/مرجعيات!$D$3,100)+H111,0)),0) -> 0 | K111: 0 | L111: =IFERROR(الجدول1[[#This Row],[ساعة البداية]]+M111,"") ->  | M111: 23:00:00 | N111: 2024-02-27T20:21:22.010
I112: =IFERROR(IF(O112="عرض",VLOOKUP(G112,مرجعيات!$B$3:$K$7,10,0),IFERROR(FLOOR(VLOOKUP(G112,مرجعيات!$B$2:$C$7,2,0)*F112/مرجعيات!$D$3,100)+H112,0)),0) -> 0 | K112: 0 | L112: =IFERROR(الجدول1[[#This Row],[ساعة البداية]]+M112,"") ->  | M112: 23:00:00 | N112: 2024-02-27T20:21:22.010
I113: =IFERROR(IF(O113="عرض",VLOOKUP(G113,مرجعيات!$B$3:$K$7,10,0),IFERROR(FLOOR(VLOOKUP(G113,مرجعيات!$B$2:$C$7,2,0)*F113/مرجعيات!$D$3,100)+H113,0)),0) -> 0 | K113: 0 | L113: =IFERROR(الجدول1[[#This Row],[ساعة البداية]]+M113,"") ->  | M113: 23:00:00 | N113: 2024-02-27T20:21:22.010
I114: =IFERROR(IF(O114="عرض",VLOOKUP(G114,مرجعيات!$B$3:$K$7,10,0),IFERROR(FLOOR(VLOOKUP(G114,مرجعيات!$B$2:$C$7,2,0)*F114/مرجعيات!$D$3,100)+H114,0)),0) -> 0 | K114: 0 | L114: =IFERROR(الجدول1[[#This Row],[ساعة البداية]]+M114,"") ->  | M114: 23:00:00 | N114: 2024-02-27T20:21:22.010
I115: =IFERROR(IF(O115="عرض",VLOOKUP(G115,مرجعيات!$B$3:$K$7,10,0),IFERROR(FLOOR(VLOOKUP(G115,مرجعيات!$B$2:$C$7,2,0)*F115/مرجعيات!$D$3,100)+H115,0)),0) -> 0 | K115: 0 | L115: =IFERROR(الجدول1[[#This Row],[ساعة البداية]]+M115,"") ->  | M115: 23:00:00 | N115: 2024-02-27T20:21:22.010
I116: =IFERROR(IF(O116="عرض",VLOOKUP(G116,مرجعيات!$B$3:$K$7,10,0),IFERROR(FLOOR(VLOOKUP(G116,مرجعيات!$B$2:$C$7,2,0)*F116/مرجعيات!$D$3,100)+H116,0)),0) -> 0 | K116: 0 | L116: =IFERROR(الجدول1[[#This Row],[ساعة البداية]]+M116,"") ->  | M116: 23:00:00 | N116: 2024-02-27T20:21:22.010
I117: =IFERROR(IF(O117="عرض",VLOOKUP(G117,مرجعيات!$B$3:$K$7,10,0),IFERROR(FLOOR(VLOOKUP(G117,مرجعيات!$B$2:$C$7,2,0)*F117/مرجعيات!$D$3,100)+H117,0)),0) -> 0 | K117: 0 | L117: =IFERROR(الجدول1[[#This Row],[ساعة البداية]]+M117,"") ->  | M117: 23:00:00 | N117: 2024-02-27T20:21:22.010
I118: =IFERROR(IF(O118="عرض",VLOOKUP(G118,مرجعيات!$B$3:$K$7,10,0),IFERROR(FLOOR(VLOOKUP(G118,مرجعيات!$B$2:$C$7,2,0)*F118/مرجعيات!$D$3,100)+H118,0)),0) -> 0 | K118: 0 | L118: =IFERROR(الجدول1[[#This Row],[ساعة البداية]]+M118,"") ->  | M118: 23:00:00 | N118: 2024-02-27T20:21:22.010
I119: =IFERROR(IF(O119="عرض",VLOOKUP(G119,مرجعيات!$B$3:$K$7,10,0),IFERROR(FLOOR(VLOOKUP(G119,مرجعيات!$B$2:$C$7,2,0)*F119/مرجعيات!$D$3,100)+H119,0)),0) -> 0 | K119: 0 | L119: =IFERROR(الجدول1[[#This Row],[ساعة البداية]]+M119,"") ->  | M119: 23:00:00 | N119: 2024-02-27T20:21:22.010
I120: =IFERROR(IF(O120="عرض",VLOOKUP(G120,مرجعيات!$B$3:$K$7,10,0),IFERROR(FLOOR(VLOOKUP(G120,مرجعيات!$B$2:$C$7,2,0)*F120/مرجعيات!$D$3,100)+H120,0)),0) -> 0 | K120: 0 | L120: =IFERROR(الجدول1[[#This Row],[ساعة البداية]]+M120,"") ->  | M120: 23:00:00 | N120: 2024-02-27T20:21:22.010
I121: =IFERROR(IF(O121="عرض",VLOOKUP(G121,مرجعيات!$B$3:$K$7,10,0),IFERROR(FLOOR(VLOOKUP(G121,مرجعيات!$B$2:$C$7,2,0)*F121/مرجعيات!$D$3,100)+H121,0)),0) -> 0 | K121: 0 | L121: =IFERROR(الجدول1[[#This Row],[ساعة البداية]]+M121,"") ->  | M121: 23:00:00 | N121: 2024-02-27T20:21:22.010
I122: =IFERROR(IF(O122="عرض",VLOOKUP(G122,مرجعيات!$B$3:$K$7,10,0),IFERROR(FLOOR(VLOOKUP(G122,مرجعيات!$B$2:$C$7,2,0)*F122/مرجعيات!$D$3,100)+H122,0)),0) -> 0 | K122: 0 | L122: =IFERROR(الجدول1[[#This Row],[ساعة البداية]]+M122,"") ->  | M122: 23:00:00 | N122: 2024-02-27T20:21:22.010
I123: =IFERROR(IF(O123="عرض",VLOOKUP(G123,مرجعيات!$B$3:$K$7,10,0),IFERROR(FLOOR(VLOOKUP(G123,مرجعيات!$B$2:$C$7,2,0)*F123/مرجعيات!$D$3,100)+H123,0)),0) -> 0 | K123: 0 | L123: =IFERROR(الجدول1[[#This Row],[ساعة البداية]]+M123,"") ->  | M123: 23:00:00 | N123: 2024-02-27T20:21:22.010
I124: =IFERROR(IF(O124="عرض",VLOOKUP(G124,مرجعيات!$B$3:$K$7,10,0),IFERROR(FLOOR(VLOOKUP(G124,مرجعيات!$B$2:$C$7,2,0)*F124/مرجعيات!$D$3,100)+H124,0)),0) -> 0 | K124: 0 | L124: =IFERROR(الجدول1[[#This Row],[ساعة البداية]]+M124,"") ->  | M124: 23:00:00 | N124: 2024-02-27T20:21:22.010
I125: =IFERROR(IF(O125="عرض",VLOOKUP(G125,مرجعيات!$B$3:$K$7,10,0),IFERROR(FLOOR(VLOOKUP(G125,مرجعيات!$B$2:$C$7,2,0)*F125/مرجعيات!$D$3,100)+H125,0)),0) -> 0 | K125: 0 | L125: =IFERROR(الجدول1[[#This Row],[ساعة البداية]]+M125,"") ->  | M125: 23:00:00 | N125: 2024-02-27T20:21:22.010
I126: =IFERROR(IF(O126="عرض",VLOOKUP(G126,مرجعيات!$B$3:$K$7,10,0),IFERROR(FLOOR(VLOOKUP(G126,مرجعيات!$B$2:$C$7,2,0)*F126/مرجعيات!$D$3,100)+H126,0)),0) -> 0 | K126: 0 | L126: =IFERROR(الجدول1[[#This Row],[ساعة البداية]]+M126,"") ->  | M126: 23:00:00 | N126: 2024-02-27T20:21:22.010
I127: =IFERROR(IF(O127="عرض",VLOOKUP(G127,مرجعيات!$B$3:$K$7,10,0),IFERROR(FLOOR(VLOOKUP(G127,مرجعيات!$B$2:$C$7,2,0)*F127/مرجعيات!$D$3,100)+H127,0)),0) -> 0 | K127: 0 | L127: =IFERROR(الجدول1[[#This Row],[ساعة البداية]]+M127,"") ->  | M127: 23:00:00 | N127: 2024-02-27T20:21:22.010
I128: =IFERROR(IF(O128="عرض",VLOOKUP(G128,مرجعيات!$B$3:$K$7,10,0),IFERROR(FLOOR(VLOOKUP(G128,مرجعيات!$B$2:$C$7,2,0)*F128/مرجعيات!$D$3,100)+H128,0)),0) -> 0 | K128: 0 | L128: =IFERROR(الجدول1[[#This Row],[ساعة البداية]]+M128,"") ->  | M128: 23:00:00 | N128: 2024-02-27T20:21:22.010
I129: =IFERROR(IF(O129="عرض",VLOOKUP(G129,مرجعيات!$B$3:$K$7,10,0),IFERROR(FLOOR(VLOOKUP(G129,مرجعيات!$B$2:$C$7,2,0)*F129/مرجعيات!$D$3,100)+H129,0)),0) -> 0 | K129: 0 | L129: =IFERROR(الجدول1[[#This Row],[ساعة البداية]]+M129,"") ->  | M129: 23:00:00 | N129: 2024-02-27T20:21:22.010
I130: =IFERROR(IF(O130="عرض",VLOOKUP(G130,مرجعيات!$B$3:$K$7,10,0),IFERROR(FLOOR(VLOOKUP(G130,مرجعيات!$B$2:$C$7,2,0)*F130/مرجعيات!$D$3,100)+H130,0)),0) -> 0 | K130: 0 | L130: =IFERROR(الجدول1[[#This Row],[ساعة البداية]]+M130,"") ->  | M130: 23:00:00 | N130: 2024-02-27T20:21:22.010
B131: =IF(A131<>"",IF(C131="",NOW(),C131),"") ->  | C131: =IF(A131<>"",IF(C131="",NOW(),C131),"") ->  | D131: =IF(E131<>"",IF(D131="",NOW(),D131),"") ->  | F131: =IFERROR(D131-C131,"") ->  | I131: =IFERROR(IF(O131="عرض",VLOOKUP(G131,مرجعيات!$B$3:$K$7,10,0),IFERROR(FLOOR(VLOOKUP(G131,مرجعيات!$B$2:$C$7,2,0)*F131/مرجعيات!$D$3,100)+H131,0)),0) -> 0 | K131: =I131+J131 -> 0 | L131: =IFERROR(الجدول1[[#This Row],[ساعة البداية]]+M131,"") ->  | M131: 23:00:00 | N131: =NOW() -> 2024-02-27T20:21:22.010
I132: =IFERROR(IF(O132="عرض",VLOOKUP(G132,مرجعيات!$B$3:$K$7,10,0),IFERROR(FLOOR(VLOOKUP(G132,مرجعيات!$B$2:$C$7,2,0)*F132/مرجعيات!$D$3,100)+H132,0)),0) -> 0 | K132: 0 | L132: =IFERROR(الجدول1[[#This Row],[ساعة البداية]]+M132,"") ->  | M132: 23:00:00 | N132: 2024-02-27T20:21:22.010
I133: =IFERROR(IF(O133="عرض",VLOOKUP(G133,مرجعيات!$B$3:$K$7,10,0),IFERROR(FLOOR(VLOOKUP(G133,مرجعيات!$B$2:$C$7,2,0)*F133/مرجعيات!$D$3,100)+H133,0)),0) -> 0 | K133: 0 | L133: =IFERROR(الجدول1[[#This Row],[ساعة البداية]]+M133,"") ->  | M133: 23:00:00 | N133: 2024-02-27T20:21:22.010
I134: =IFERROR(IF(O134="عرض",VLOOKUP(G134,مرجعيات!$B$3:$K$7,10,0),IFERROR(FLOOR(VLOOKUP(G134,مرجعيات!$B$2:$C$7,2,0)*F134/مرجعيات!$D$3,100)+H134,0)),0) -> 0 | K134: 0 | L134: =IFERROR(الجدول1[[#This Row],[ساعة البداية]]+M134,"") ->  | M134: 23:00:00 | N134: 2024-02-27T20:21:22.010
I135: =IFERROR(IF(O135="عرض",VLOOKUP(G135,مرجعيات!$B$3:$K$7,10,0),IFERROR(FLOOR(VLOOKUP(G135,مرجعيات!$B$2:$C$7,2,0)*F135/مرجعيات!$D$3,100)+H135,0)),0) -> 0 | K135: 0 | L135: =IFERROR(الجدول1[[#This Row],[ساعة البداية]]+M135,"") ->  | M135: 23:00:00 | N135: 2024-02-27T20:21:22.010
I136: =IFERROR(IF(O136="عرض",VLOOKUP(G136,مرجعيات!$B$3:$K$7,10,0),IFERROR(FLOOR(VLOOKUP(G136,مرجعيات!$B$2:$C$7,2,0)*F136/مرجعيات!$D$3,100)+H136,0)),0) -> 0 | K136: 0 | L136: =IFERROR(الجدول1[[#This Row],[ساعة البداية]]+M136,"") ->  | M136: 23:00:00 | N136: 2024-02-27T20:21:22.010
I137: =IFERROR(IF(O137="عرض",VLOOKUP(G137,مرجعيات!$B$3:$K$7,10,0),IFERROR(FLOOR(VLOOKUP(G137,مرجعيات!$B$2:$C$7,2,0)*F137/مرجعيات!$D$3,100)+H137,0)),0) -> 0 | K137: 0 | L137: =IFERROR(الجدول1[[#This Row],[ساعة البداية]]+M137,"") ->  | M137: 23:00:00 | N137: 2024-02-27T20:21:22.010
I138: =IFERROR(IF(O138="عرض",VLOOKUP(G138,مرجعيات!$B$3:$K$7,10,0),IFERROR(FLOOR(VLOOKUP(G138,مرجعيات!$B$2:$C$7,2,0)*F138/مرجعيات!$D$3,100)+H138,0)),0) -> 0 | K138: 0 | L138: =IFERROR(الجدول1[[#This Row],[ساعة البداية]]+M138,"") ->  | M138: 23:00:00 | N138: 2024-02-27T20:21:22.010
I139: =IFERROR(IF(O139="عرض",VLOOKUP(G139,مرجعيات!$B$3:$K$7,10,0),IFERROR(FLOOR(VLOOKUP(G139,مرجعيات!$B$2:$C$7,2,0)*F139/مرجعيات!$D$3,100)+H139,0)),0) -> 0 | K139: 0 | L139: =IFERROR(الجدول1[[#This Row],[ساعة البداية]]+M139,"") ->  | M139: 23:00:00 | N139: 2024-02-27T20:21:22.010
I140: =IFERROR(IF(O140="عرض",VLOOKUP(G140,مرجعيات!$B$3:$K$7,10,0),IFERROR(FLOOR(VLOOKUP(G140,مرجعيات!$B$2:$C$7,2,0)*F140/مرجعيات!$D$3,100)+H140,0)),0) -> 0 | K140: 0 | L140: =IFERROR(الجدول1[[#This Row],[ساعة البداية]]+M140,"") ->  | M140: 23:00:00 | N140: 2024-02-27T20:21:22.010
I141: =IFERROR(IF(O141="عرض",VLOOKUP(G141,مرجعيات!$B$3:$K$7,10,0),IFERROR(FLOOR(VLOOKUP(G141,مرجعيات!$B$2:$C$7,2,0)*F141/مرجعيات!$D$3,100)+H141,0)),0) -> 0 | K141: 0 | L141: =IFERROR(الجدول1[[#This Row],[ساعة البداية]]+M141,"") ->  | M141: 23:00:00 | N141: 2024-02-27T20:21:22.010
I142: =IFERROR(IF(O142="عرض",VLOOKUP(G142,مرجعيات!$B$3:$K$7,10,0),IFERROR(FLOOR(VLOOKUP(G142,مرجعيات!$B$2:$C$7,2,0)*F142/مرجعيات!$D$3,100)+H142,0)),0) -> 0 | K142: 0 | L142: =IFERROR(الجدول1[[#This Row],[ساعة البداية]]+M142,"") ->  | M142: 23:00:00 | N142: 2024-02-27T20:21:22.010
I143: =IFERROR(IF(O143="عرض",VLOOKUP(G143,مرجعيات!$B$3:$K$7,10,0),IFERROR(FLOOR(VLOOKUP(G143,مرجعيات!$B$2:$C$7,2,0)*F143/مرجعيات!$D$3,100)+H143,0)),0) -> 0 | K143: 0 | L143: =IFERROR(الجدول1[[#This Row],[ساعة البداية]]+M143,"") ->  | M143: 23:00:00 | N143: 2024-02-27T20:21:22.010
I144: =IFERROR(IF(O144="عرض",VLOOKUP(G144,مرجعيات!$B$3:$K$7,10,0),IFERROR(FLOOR(VLOOKUP(G144,مرجعيات!$B$2:$C$7,2,0)*F144/مرجعيات!$D$3,100)+H144,0)),0) -> 0 | K144: 0 | L144: =IFERROR(الجدول1[[#This Row],[ساعة البداية]]+M144,"") ->  | M144: 23:00:00 | N144: 2024-02-27T20:21:22.010
I145: =IFERROR(IF(O145="عرض",VLOOKUP(G145,مرجعيات!$B$3:$K$7,10,0),IFERROR(FLOOR(VLOOKUP(G145,مرجعيات!$B$2:$C$7,2,0)*F145/مرجعيات!$D$3,100)+H145,0)),0) -> 0 | K145: 0 | L145: =IFERROR(الجدول1[[#This Row],[ساعة البداية]]+M145,"") ->  | M145: 23:00:00 | N145: 2024-02-27T20:21:22.010
I146: =IFERROR(IF(O146="عرض",VLOOKUP(G146,مرجعيات!$B$3:$K$7,10,0),IFERROR(FLOOR(VLOOKUP(G146,مرجعيات!$B$2:$C$7,2,0)*F146/مرجعيات!$D$3,100)+H146,0)),0) -> 0 | K146: 0 | L146: =IFERROR(الجدول1[[#This Row],[ساعة البداية]]+M146,"") ->  | M146: 23:00:00 | N146: 2024-02-27T20:21:22.010
I147: =IFERROR(IF(O147="عرض",VLOOKUP(G147,مرجعيات!$B$3:$K$7,10,0),IFERROR(FLOOR(VLOOKUP(G147,مرجعيات!$B$2:$C$7,2,0)*F147/مرجعيات!$D$3,100)+H147,0)),0) -> 0 | K147: 0 | L147: =IFERROR(الجدول1[[#This Row],[ساعة البداية]]+M147,"") ->  | M147: 23:00:00 | N147: 2024-02-27T20:21:22.010
I148: =IFERROR(IF(O148="عرض",VLOOKUP(G148,مرجعيات!$B$3:$K$7,10,0),IFERROR(FLOOR(VLOOKUP(G148,مرجعيات!$B$2:$C$7,2,0)*F148/مرجعيات!$D$3,100)+H148,0)),0) -> 0 | K148: 0 | L148: =IFERROR(الجدول1[[#This Row],[ساعة البداية]]+M148,"") ->  | M148: 23:00:00 | N148: 2024-02-27T20:21:22.010
I149: =IFERROR(IF(O149="عرض",VLOOKUP(G149,مرجعيات!$B$3:$K$7,10,0),IFERROR(FLOOR(VLOOKUP(G149,مرجعيات!$B$2:$C$7,2,0)*F149/مرجعيات!$D$3,100)+H149,0)),0) -> 0 | K149: 0 | L149: =IFERROR(الجدول1[[#This Row],[ساعة البداية]]+M149,"") ->  | M149: 23:00:00 | N149: 2024-02-27T20:21:22.010
I150: =IFERROR(IF(O150="عرض",VLOOKUP(G150,مرجعيات!$B$3:$K$7,10,0),IFERROR(FLOOR(VLOOKUP(G150,مرجعيات!$B$2:$C$7,2,0)*F150/مرجعيات!$D$3,100)+H150,0)),0) -> 0 | K150: 0 | L150: =IFERROR(الجدول1[[#This Row],[ساعة البداية]]+M150,"") ->  | M150: 23:00:00 | N150: 2024-02-27T20:21:22.010
I151: =IFERROR(IF(O151="عرض",VLOOKUP(G151,مرجعيات!$B$3:$K$7,10,0),IFERROR(FLOOR(VLOOKUP(G151,مرجعيات!$B$2:$C$7,2,0)*F151/مرجعيات!$D$3,100)+H151,0)),0) -> 0 | K151: 0 | L151: =IFERROR(الجدول1[[#This Row],[ساعة البداية]]+M151,"") ->  | M151: 23:00:00 | N151: 2024-02-27T20:21:22.010

Sheet ورقة1
L3: 2023-07-21T21:15:45 | M3: 2023-07-21T21:15:49 | N3: 2024-02-27T20:14:02

Sheet مرجعيات
A2: التسعيرة | B2: الجهاز | C2: مبلغ الساعة | D2: ساعة | I2: 23:00:00
A3: 1 | B3: ps 4 (2) | C3: 12000 | D3: 01:00:00 | F3: 1 | I3: 00:01:00 | K3: 8000 | L3: عرض | N3: 2024-02-27T20:14:01
A4: 1 | B4: ps 4 (4) | C4: 16000 | D4: 01:00:00 | F4: 2 | I4: 00:10:00 | K4: 12000
A5: 1 | B5: ps 5 (2) | C5: 14000 | D5: 01:00:00 | F5: 3 | I5: 00:15:00 | K5: 10000
A6: 1 | B6: ps 4 (3) | C6: 14000 | D6: 01:00:00 | F6: 4 | I6: 00:30:00 | K6: 10000
A7: 1 | B7: ps 5 (4) | C7: 18000 | D7: 01:00:00 | F7: 5 | I7: 00:45:00 | K7: 14000
F8: 6 | I8: 01:00:00
F9: 7 | I9: 01:15:00
I10: 01:30:00
I11: 01:45:00
I12: 02:00:00
I13: 02:30:00
I14: 03:00:00
